bitfinex-derivatives/quotes_SOLF0:USTF0_20241027
["timestamp","ask_amount","ask_price","bid_price","bid_amount"]
[1730012761163,12.27359574,173.38,173.36,2.8873]
[1730012761866,7.99359574,173.37,173.33,2.8878]
[1730012762068,4.28,173.38,173.29,7.99359574]
[1730012762069,7.99359574,173.34,173.29,7.99359574]
[1730012762262,12.27359574,173.34,173.29,7.99359574]
[1730012762463,12.27359574,173.34,173.32,2.8881]
[1730012762864,4.28,173.34,173.32,2.8881]
[1730012763459,4.28,173.34,173.3,7.99359574]
[1730012763666,4.28,173.34,173.32,2.888]
[1730012767669,4.28,173.34,173.33,10.88149574]
[1730012769776,4.22,173.37,173.33,7.99359574]
[1730012770078,4.22,173.37,173.36,2.8873]
[1730012771673,2.8874,173.36,173.32,2.888]
[1730012771871,12.21359574,173.37,173.32,2.888]
[1730012772172,15.10099574,173.37,173.32,2.888]
[1730012772472,7.99359574,173.35,173.32,2.888]
[1730012773466,10.88119574,173.36,173.32,2.888]
[1730012775073,4.22,173.37,173.35,2.8875]
[1730012775275,12.21359574,173.37,173.31,7.99359574]
[1730012776067,15.10099574,173.37,173.33,2.8879]
[1730012778877,7.99359574,173.35,173.33,2.8879]
[1730012779074,7.99359574,173.34,173.28,7.99359574]
[1730012779381,2.49,173.43,173.27,9.25819574]
[1730012779382,12.21359574,173.33,173.27,9.25819574]
[1730012779576,7.99359574,173.31,173.29,2.8885]
[1730012781071,4.22,173.32,173.29,2.8885]
[1730012781276,12.21359574,173.32,173.29,2.8885]
[1730012782487,1.2894,173.36,173.31,7.99359574]
[1730012782685,4.22,173.35,173.31,7.99359574]
[1730012783183,7.99359574,173.34,173.32,2.8881]
[1730012783888,4.22,173.35,173.32,2.8881]
[1730012784079,7.99359574,173.34,173.32,2.8881]
[1730012786990,4.22,173.35,173.32,2.8881]
[1730012787291,12.21359574,173.35,173.32,2.8881]
[1730012789890,15.10119574,173.35,173.32,2.8881]
[1730012790392,7.99359574,173.34,173.32,2.8881]
[1730012792193,4.22,173.35,173.32,2.8881]
[1730012793488,4.22,173.35,173.31,7.99359574]
[1730012793690,4.22,173.34,173.33,7.99359574]
[1730012795389,4.22,173.34,173.33,10.88149574]
[1730012798895,7.99359574,173.38,173.35,2.8876]
[1730012799101,4.22,173.37,173.35,7.99359574]
[1730012799300,4.22,173.36,173.35,7.99359574]
[1730012799501,4.22,173.36,173.35,10.88119574]
[1730012801500,4.22,173.36,173.26,1.2103]
[1730012801805,12.21359574,173.36,173.33,2.8878]
[1730012803213,12.21359574,173.36,173.31,7.99359574]
[1730012803214,4.22,173.36,173.31,7.99359574]
[1730012803417,4.22,173.36,173.34,2.8877]
[1730012804412,4.22,173.36,173.32,7.99359574]
[1730012804607,4.22,173.36,173.35,2.8876]
[1730012805720,4.22,173.36,173.35,10.88119574]
[1730012807313,4.22,173.36,173.35,12.32542977]
[1730012809421,4.22,173.36,173.35,10.88119574]
[1730012810114,4.22,173.36,173.35,12.32542791]
[1730012810820,4.22,173.36,173.35,17.39947245]
[1730012811319,7.99359574,173.41,173.38,2.887]
[1730012811516,2.8863,173.43,173.38,7.99359574]
[1730012811716,4.18,173.4,173.39,7.99359574]
[1730012811919,7.99359574,173.44,173.39,7.99359574]
[1730012812218,7.99359574,173.41,173.32,3.7249]
[1730012812420,4.18,173.43,173.33,6.51528962]
[1730012812619,7.99359574,173.41,173.36,7.99359574]
[1730012812819,12.17359574,173.43,173.37,7.99359574]
[1730012813822,12.17359574,173.43,173.39,2.8869]
[1730012814620,12.17359574,173.43,173.4,2.8867]
[1730012816123,15.05989574,173.43,173.4,2.8867]
[1730012817128,10.88019574,173.41,173.37,2.8872]
[1730012817329,7.99359574,173.39,173.37,2.8872]
[1730012817629,4.18,173.38,173.37,2.8872]
[1730012826930,7.99359574,173.32,173.29,6.51474271]
[1730012827135,12.17359574,173.32,173.3,1.44448983]
[1730012827342,12.17359574,173.32,173.27,9.21679574]
[1730012827630,12.17359574,173.32,173.28,6.51649181]
[1730012827831,12.17359574,173.32,173.27,9.21679574]
[1730012828033,4.18,173.32,173.28,6.51714632]
[1730012828335,12.17359574,173.32,173.27,9.21679574]
[1730012828534,12.17359574,173.32,173.28,6.51691751]
[1730012828835,12.17359574,173.32,173.28,2.8887]
[1730012830638,7.99359574,173.29,173.26,2.889]
[1730012830826,4.2,173.28,173.27,6.5177186]
[1730012831535,4.2,173.28,173.21,9.21499574]
[1730012831735,7.99359574,173.26,173.22,9.40917204]
[1730012831931,7.99359574,173.26,173.23,6.51947204]
[1730012832141,7.99359574,173.26,173.24,6.51947204]
[1730012832439,7.99359574,173.26,173.22,2.8897]
[1730012832643,7.99359574,173.24,173.23,6.51900427]
[1730012832835,12.19359574,173.24,173.23,1.4448956]
[1730012833027,12.19359574,173.24,173.21,2.8899]
[1730012833234,4.2,173.24,173.23,1.44498]
[1730012835126,4.2,173.24,173.22,2.8898]
[1730012835732,7.99359574,173.26,173.22,2.8898]
[1730012835932,4.2,173.27,173.23,6.51535553]
[1730012836129,12.19359574,173.27,173.22,7.99359574]
[1730012836334,12.19359574,173.27,173.23,6.51487481]
[1730012836536,7.99359574,173.26,173.23,2.8895]
[1730012838039,4.2,173.27,173.17,2.4683]
[1730012838237,4.2,173.27,173.24,2.8893]
[1730012839831,7.99359574,173.28,173.23,7.99359574]
[1730012840038,4.2,173.27,173.25,2.8891]
[1730012840741,4.2,173.27,173.26,2.8891]
[1730012845246,12.19359574,173.27,173.19,6.50717438]
[1730012845446,12.19359574,173.27,173.24,2.8893]
[1730012846149,12.19359574,173.27,173.25,2.8893]
[1730012847248,7.99359574,173.26,173.17,2.4683]
[1730012847454,7.99359574,173.23,173.22,2.8896]
[1730012847652,12.19359574,173.23,173.22,2.8896]
[1730012849445,12.19359574,173.23,173.2,6.50719915]
[1730012849654,7.99359574,173.22,173.2,2.8901]
[1730012850245,7.99359574,173.21,173.18,5.06150411]
[1730012850549,7.99359574,173.19,173.14,5.06338647]
[1730012850743,7.99359574,173.17,173.15,6.50862825]
[1730012851051,7.99359574,173.16,173.09,1.1661]
[1730012851238,7.99359574,173.14,173.1,6.51450823]
[1730012851438,4.2,173.13,173.1,5.0687103]
[1730012851953,4.2,173.13,173.09,6.2348103]
[1730012852158,4.2,173.13,173.09,1.1661]
[1730012852451,4.2,173.13,173.12,2.8914]
[1730012853348,4.2,173.13,173.11,2.8916]
[1730012854051,4.2,173.13,173.1,2.8918]
[1730012854646,4.2,173.13,173.09,2.8919]
[1730012855042,12.50485345,173.12,173.09,2.8919]
[1730012856355,12.50485345,173.12,173.04,1.2675]
[1730012856749,12.50485345,173.1,173.04,1.2675]
[1730012856949,4.2,173.09,173.04,1.2675]
[1730012857247,4.2,173.09,173.06,2.8923]
[1730012857750,4.2,173.08,173.04,1.2675]
[1730012857953,12.50485345,173.12,173.07,2.8921]
[1730012858154,4.2,173.11,173.07,2.8921]
[1730012859046,4.2,173.11,173.04,1.2675]
[1730012859355,12.50485345,173.1,172.99,18.99489738]
[1730012859555,12.50485345,173.1,173.0,1.4462997]
[1730012859753,12.50485345,173.1,172.99,21.43609738]
[1730012859949,12.50485345,173.1,173.05,2.8925]
[1730012860451,12.50485345,173.1,173.0,1.4462997]
[1730012860656,12.50485345,173.1,173.06,2.8924]
[1730012861655,12.50485345,173.1,173.06,2.8923]
[1730012862158,4.2,173.11,173.01,12.50485345]
[1730012862655,4.2,173.11,173.07,2.8921]
[1730012865651,4.2,173.11,173.08,2.8921]
[1730012866052,4.2,173.11,173.01,12.50485345]
[1730012866254,4.2,173.11,173.09,2.8919]
[1730012867059,12.50485345,173.12,173.09,2.8919]
[1730012867261,12.50485345,173.14,173.11,2.8916]
[1730012867559,4.28,173.13,173.11,2.8916]
[1730012868356,12.50485345,173.14,173.03,12.50485345]
[1730012868558,4.28,173.13,173.12,2.8913]
[1730012872256,12.27466324,173.13,173.12,2.8913]
[1730012872462,4.28,173.13,173.12,2.8913]
[1730012872764,12.27466324,173.13,173.12,2.8913]
[1730012873965,7.99466324,173.13,173.12,2.8913]
[1730012874264,4.28,173.13,173.08,7.99466324]
[1730012874471,1.2398,173.19,173.1,7.99466324]
[1730012874656,7.99466324,173.18,173.13,7.99466324]
[1730012874853,4.28,173.17,173.16,2.8908]
[1730012876063,12.27466324,173.17,173.15,2.8909]
[1730012877958,4.28,173.17,173.16,2.8908]
[1730012878163,12.27466324,173.17,173.16,2.8908]
[1730012878666,1.2888,173.25,173.14,7.99466324]
[1730012878865,7.99466324,173.19,173.17,2.8905]
[1730012880969,4.28,173.18,173.17,2.8905]
[1730012884267,1.2888,173.25,173.16,7.99466324]
[1730012884470,7.99466324,173.21,173.2,2.8901]
[1730012884671,7.99466324,173.21,173.09,4.28]
[1730012884672,7.99466324,173.23,173.18,7.99466324]
[1730012884867,4.28,173.22,173.19,7.99466324]
[1730012885068,4.28,173.22,173.21,2.8898]
[1730012896583,12.27466324,173.22,173.21,2.8898]
[1730012897681,4.28,173.22,173.21,2.8898]
[1730012904391,7.99466324,173.23,173.21,2.8898]
[1730012904687,4.24,173.22,173.21,2.8898]
[1730012908084,7.1298,173.22,173.19,2.8902]
[1730012908993,4.24,173.22,173.19,2.8902]
[1730012912590,12.23466324,173.22,173.19,2.8902]
[1730012913992,4.24,173.22,173.19,2.8902]
[1730012914192,12.23466324,173.22,173.19,2.8902]
[1730012917487,4.24,173.22,173.2,2.89]
[1730012926605,4.24,173.22,173.21,2.8899]
[1730012926910,4.24,173.22,173.17,7.99466324]
[1730012928311,4.24,173.22,173.2,2.89]
[1730012929209,4.24,173.22,173.17,7.99466324]
[1730012931410,4.24,173.22,173.2,2.8901]
[1730012936121,7.1298,173.22,173.19,2.8902]
[1730012936516,4.24,173.22,173.17,7.99466324]
[1730012936919,4.24,173.22,173.2,2.8901]
[1730012940025,4.24,173.22,173.17,7.99466324]
[1730012940224,4.24,173.22,173.18,6.53334804]
[1730012940416,1.2874,173.27,173.18,7.99466324]
[1730012940619,12.15466324,173.26,173.2,7.99466324]
[1730012941018,7.99466324,173.24,173.21,2.8899]
[1730012944028,4.16,173.23,173.21,2.8899]
[1730012948431,12.15466324,173.23,173.14,3.7658]
[1730012948621,7.99466324,173.19,173.15,6.54492286]
[1730012948824,1.2874,173.27,173.16,6.54492286]
[1730012948825,12.15466324,173.18,173.16,6.54492286]
[1730012949028,12.15466324,173.17,173.08,1.2474]
[1730012949330,1.2874,173.27,173.1,7.99466324]
[1730012949331,7.99466324,173.15,173.1,7.99466324]
[1730012949527,4.16,173.14,173.11,6.54922248]
[1730012949723,4.16,173.14,173.12,13.09793275]
[1730012949929,4.16,173.14,173.13,14.54388572]
[1730012950323,4.16,173.14,173.13,17.43518572]
[1730012950930,7.99466324,173.18,173.13,14.54388572]
[1730012951130,7.99466324,173.18,173.15,2.8909]
[1730012951131,4.16,173.17,173.15,2.8909]
[1730012951330,4.16,173.17,173.16,6.54922248]
[1730012952332,4.16,173.17,173.16,9.44002248]
[1730012954032,4.16,173.17,173.16,17.43468572]
[1730012954235,2.2211,173.17,173.16,17.43468572]
[1730012954731,2.8879,173.34,173.27,2.8888]
[1730012954939,12.09466324,173.35,173.28,7.99466324]
[1730012955235,12.09466324,173.35,173.3,7.99466324]
[1730012955236,4.1,173.34,173.3,7.99466324]
[1730012956338,4.1,173.34,173.31,2.8882]
[1730012957245,4.1,173.34,173.3,7.99466324]
[1730012959239,4.1,173.34,173.31,2.8881]
[1730012959938,7.99466324,173.35,173.31,2.8881]
[1730012960135,4.1,173.34,173.31,2.8881]
[1730012964940,4.1,173.34,173.33,2.8879]
[1730012965944,7.99466324,173.36,173.33,2.8879]
[1730012966145,4.1,173.37,173.36,2.8874]
[1730012966643,4.1,173.38,173.37,2.8873]
[1730012972045,12.09466324,173.38,173.34,2.8877]
[1730012972242,7.99466324,173.35,173.3,7.99466324]
[1730012972754,7.99466324,173.35,173.32,2.888]
[1730012973248,7.99466324,173.35,173.3,7.99466324]
[1730012973653,7.99466324,173.35,173.32,2.888]
[1730012975445,7.99466324,173.35,173.32,2.8881]
[1730012976550,7.99466324,173.35,173.3,7.99466324]
[1730012977854,7.99466324,173.35,173.32,2.888]
[1730012979460,7.99466324,173.35,173.27,1.178]
[1730012979461,7.99466324,173.34,173.31,2.8881]
[1730012979754,12.09466324,173.34,173.31,2.8881]
[1730012980449,12.09466324,173.34,173.29,7.99466324]
[1730012980756,12.09466324,173.34,173.32,2.8881]
[1730012981148,12.09466324,173.34,173.29,7.99466324]
[1730012981959,12.09466324,173.34,173.32,2.8881]
[1730012983349,12.09466324,173.34,173.12,338.0]
[1730012983350,2.8881,173.33,173.28,2.8887]
[1730012983554,7.99466324,173.3,173.25,7.99466324]
[1730012984555,7.99466324,173.3,173.29,2.8886]
[1730012986966,7.99466324,173.3,173.27,2.8888]
[1730012987264,12.13466324,173.3,173.27,2.8888]
[1730012987463,12.13466324,173.3,173.28,2.8887]
[1730012988259,12.13466324,173.3,173.29,2.8886]
[1730012994465,7.99466324,173.32,173.27,7.99466324]
[1730012994658,12.13466324,173.32,173.31,2.8883]
[1730012995861,12.13466324,173.32,173.22,4.14]
[1730012996062,12.13466324,173.32,173.29,2.8884]
[1730012996569,12.13466324,173.32,173.3,2.8884]
[1730013001762,6.34866324,173.32,173.3,2.8884]
[1730013001957,2.8876,173.35,173.31,2.8882]
[1730013002157,2.8876,173.35,173.29,7.99466324]
[1730013002158,4.14,173.34,173.29,7.99466324]
[1730013003071,12.13466324,173.35,173.29,7.99466324]
[1730013003262,12.13466324,173.35,173.32,2.8881]
[1730013003665,12.13466324,173.35,173.29,7.99466324]
[1730013005263,12.13466324,173.35,173.33,2.8878]
[1730013005863,7.99466324,173.34,173.31,2.8882]
[1730013006058,7.99466324,173.32,173.31,2.8882]
[1730013008161,7.99466324,173.32,173.26,7.99466324]
[1730013008363,7.99466324,173.3,173.28,2.8886]
[1730013009062,7.99466324,173.3,173.29,2.8886]
[1730013013070,4.14,173.31,173.3,2.8884]
[1730013013667,12.11466324,173.34,173.31,2.8881]
[1730013013877,12.11466324,173.34,173.29,7.99466324]
[1730013014972,7.99466324,173.33,173.27,7.99466324]
[1730013015283,7.99466324,173.31,173.26,7.99466324]
[1730013015883,4.12,173.3,173.26,7.99466324]
[1730013016374,4.12,173.3,173.29,2.8885]
[1730013020675,15.00326324,173.3,173.25,2.8891]
[1730013020866,7.99466324,173.27,173.21,10.45926324]
[1730013021069,7.99466324,173.27,173.22,6.52464739]
[1730013021275,7.99466324,173.27,173.23,6.52464733]
[1730013021470,7.99466324,173.27,173.21,10.45926324]
[1730013021677,7.99466324,173.27,173.22,6.52832399]
[1730013021869,7.99466324,173.27,173.23,1.44517169]
[1730013022072,7.99466324,173.27,173.21,10.45926324]
[1730013022272,7.99466324,173.27,173.22,6.52849141]
[1730013022473,7.99466324,173.27,173.23,6.52849141]
[1730013022678,7.99466324,173.27,173.25,2.8891]
[1730013022885,7.99466324,173.27,173.21,10.45926324]
[1730013023183,7.99466324,173.27,173.22,6.53222135]
[1730013023378,7.99466324,173.27,173.23,1.44517309]
[1730013023581,7.99466324,173.27,173.24,6.5366719]
[1730013023881,7.99466324,173.28,173.23,7.99466324]
[1730013024079,7.99466324,173.28,173.26,2.889]
[1730013024973,7.99466324,173.28,173.24,7.99466324]
[1730013025174,7.99466324,173.28,173.27,2.8889]
[1730013028190,7.99466324,173.28,173.25,2.8892]
[1730013028382,7.99466324,173.27,173.25,2.8892]
[1730013028883,12.11466324,173.26,173.13,5.7825]
[1730013029078,7.99466324,173.24,173.18,7.99466324]
[1730013029281,7.99466324,173.24,173.19,6.53481403]
[1730013029477,7.99466324,173.24,173.22,2.8896]
[1730013029683,7.99466324,173.24,173.23,1.445235]
[1730013030381,7.99466324,173.24,173.18,7.99466324]
[1730013030586,7.99466324,173.24,173.19,6.53362902]
[1730013030788,7.99466324,173.24,173.2,6.53362902]
[1730013031087,7.99466324,173.25,173.23,2.8896]
[1730013033677,7.99466324,173.25,173.2,7.99466324]
[1730013033881,7.99466324,173.25,173.24,2.8894]
[1730013034382,12.11466324,173.26,173.24,2.8894]
[1730013035276,7.99466324,173.26,173.24,2.8894]
[1730013035478,4.12,173.27,173.24,7.99466324]
[1730013036488,4.12,173.27,173.26,2.8891]
[1730013037782,4.12,173.28,173.27,2.8888]
[1730013041887,12.11466324,173.28,173.21,1.2473]
[1730013042092,7.99466324,173.26,173.22,6.53631257]
[1730013042292,7.99466324,173.26,173.21,9.24196324]
[1730013042493,7.99466324,173.26,173.22,6.53635815]
[1730013042693,7.99466324,173.26,173.23,1.44523832]
[1730013042899,7.99466324,173.26,173.21,9.24196324]
[1730013043091,7.99466324,173.26,173.22,6.53674484]
[1730013043395,7.99466324,173.26,173.25,2.8893]
[1730013044401,7.99466324,173.26,173.22,2.8896]
[1730013044592,7.99466324,173.24,173.22,2.8896]
[1730013044894,12.07466324,173.24,173.19,7.99466324]
[1730013045098,12.07466324,173.24,173.2,6.53718538]
[1730013045297,4.08,173.24,173.21,6.53718538]
[1730013045497,4.08,173.24,173.17,7.99466324]
[1730013045498,7.99466324,173.21,173.17,7.99466324]
[1730013045795,4.08,173.2,173.19,2.8903]
[1730013046191,4.08,173.2,173.19,9.42937618]
[1730013046388,4.08,173.2,173.19,4.33576405]
[1730013046595,4.08,173.2,173.19,9.42853948]
[1730013047400,4.08,173.2,173.19,4.33576405]
[1730013047896,4.08,173.2,173.19,9.42779901]
[1730013048093,4.08,173.2,173.19,4.33576405]
[1730013048292,4.08,173.2,173.19,9.42787521]
[1730013048486,4.08,173.2,173.19,4.33576405]
[1730013049616,4.08,173.2,173.19,2.8903]
[1730013049902,4.08,173.2,173.19,4.33577826]
[1730013050798,4.08,173.2,173.19,2.8903]
[1730013053796,4.08,173.2,173.19,4.33578439]
[1730013055402,4.08,173.2,173.19,2.8903]
[1730013058300,4.08,173.2,173.17,7.99466324]
[1730013058301,12.07466324,173.2,173.17,2.8905]
[1730013060407,7.99466324,173.18,173.08,3.6298]
[1730013060605,7.99466324,173.18,173.12,14.52632184]
[1730013060806,7.99466324,173.18,173.13,6.5316586]
[1730013060999,7.99466324,173.18,173.14,1.44572899]
[1730013061205,7.99466324,173.18,173.12,7.99466324]
[1730013061405,7.99466324,173.18,173.14,2.891]
[1730013062309,7.99466324,173.18,173.15,2.8909]
[1730013063506,2.91623777,173.27,173.14,7.99466324]
[1730013063809,7.99466324,173.24,173.18,7.99466324]
[1730013064007,4.1,173.23,173.18,7.99466324]
[1730013065110,4.1,173.23,173.2,2.89]
[1730013068912,7.99466324,173.24,173.21,2.8898]
[1730013069113,4.1,173.22,173.21,2.8898]
[1730013069717,10.88406324,173.25,173.21,2.8898]
[1730013070015,7.99466324,173.26,173.21,7.99466324]
[1730013070212,4.1,173.25,173.21,7.99466324]
[1730013070607,4.1,173.25,173.23,2.8895]
[1730013071815,4.08,173.24,173.21,7.99466324]
[1730013072411,4.08,173.24,173.23,2.8896]
[1730013090835,4.08,173.24,173.16,2.5708]
[1730013091030,7.99466324,173.22,173.17,14.52745173]
[1730013091231,7.99466324,173.22,173.18,1.44559727]
[1730013091535,7.99466324,173.22,173.17,7.99466324]
[1730013091737,7.99466324,173.22,173.18,1.44561944]
[1730013091939,7.99466324,173.22,173.17,7.99466324]
[1730013092141,7.99466324,173.22,173.18,1.44561944]
[1730013092333,10.88446324,173.22,173.19,2.8903]
[1730013095433,7.99466324,173.22,173.19,2.8903]
[1730013097141,2.4047,173.3,173.2,7.99466324]
[1730013097452,7.99466324,173.27,173.22,7.99466324]
[1730013097946,4.08,173.26,173.22,7.99466324]
[1730013098249,4.08,173.26,173.23,2.8896]
[1730013100246,6.9692,173.26,173.23,2.8896]
[1730013101449,4.0813,173.3,173.25,2.8891]
[1730013101645,12.07596324,173.3,173.25,7.99466324]
[1730013102045,4.06,173.29,173.25,7.99466324]
[1730013103050,9.18736324,173.3,173.25,7.99466324]
[1730013103245,4.06,173.29,173.25,7.99466324]
[1730013103460,4.06,173.29,173.27,7.99466324]
[1730013103756,4.06,173.29,173.28,2.8888]
[1730013105264,56.14,173.41,173.28,7.99466324]
[1730013105553,7.99466324,173.35,173.3,7.99466324]
[1730013105743,4.06,173.34,173.3,7.99466324]
[1730013106353,2.441,173.4,173.3,10.88306324]
[1730013106549,7.99466324,173.35,173.3,10.88306324]
[1730013106750,4.06,173.34,173.3,7.99466324]
[1730013107347,4.06,173.34,173.31,2.8883]
[1730013110660,10.88236324,173.35,173.31,2.8883]
[1730013110862,4.06,173.34,173.31,2.8883]
[1730013115654,4.06,173.34,173.3,7.99466324]
[1730013115860,4.06,173.34,173.32,2.888]
[1730013116458,4.06,173.34,173.33,2.8879]
[1730013118564,2.441,173.4,173.35,2.8875]
[1730013118764,10.43566324,173.4,173.35,10.88216324]
[1730013118971,4.06,173.39,173.35,10.88216324]
[1730013119153,4.06,173.38,173.35,10.88216324]
[1730013119363,58.57489776,173.47,173.36,7.99466324]
[1730013119555,7.99466324,173.42,173.37,10.88176324]
[1730013119859,6.9467,173.41,173.37,7.99466324]
[1730013120657,14.94136324,173.41,173.37,2.8871]
[1730013122969,14.94136324,173.41,173.36,10.88196324]
[1730013123361,7.99466324,173.4,173.32,3.5543]
[1730013123569,2.8869,173.39,173.35,2.8875]
[1730013124567,7.99466324,173.38,173.35,2.8875]
[1730013125776,2.8875,173.36,173.32,2.8881]
[1730013125976,6.9475,173.36,173.32,2.8881]
[1730013127171,2.8877,173.35,173.31,10.88296324]
[1730013131870,2.8877,173.35,173.32,2.8881]
[1730013132974,6.9475,173.36,173.32,2.8881]
[1730013135888,4.06,173.36,173.31,7.99466324]
[1730013136085,6.9474,173.36,173.33,2.8878]
[1730013136878,4.06,173.36,173.33,2.8878]
[1730013138088,4.06,173.39,173.34,7.99466324]
[1730013138783,7.99466324,173.38,173.28,5.18991643]
[1730013138981,7.99466324,173.36,173.31,7.99466324]
[1730013139782,7.99466324,173.36,173.31,10.88286324]
[1730013139783,10.88226324,173.36,173.31,10.88286324]
[1730013139987,10.88226324,173.36,173.31,7.99466324]
[1730013141187,12.05466324,173.35,173.31,7.99466324]
[1730013141387,4.06,173.35,173.31,7.99466324]
[1730013141582,4.06,173.35,173.32,7.99466324]
[1730013141779,4.06,173.35,173.34,2.8878]
[1730013143385,6.9472,173.38,173.34,10.88246324]
[1730013143887,4.06,173.38,173.35,2.8875]
[1730013144383,4.06,173.38,173.34,7.99466324]
[1730013144783,4.06,173.38,173.36,2.8874]
[1730013145381,1.1725,173.45,173.35,7.99466324]
[1730013145586,7.99466324,173.42,173.36,7.99466324]
[1730013145992,4.06,173.41,173.36,7.99466324]
[1730013146492,4.06,173.41,173.38,2.887]
[1730013149794,4.06,173.41,173.38,2.8871]
[1730013150697,6.9467,173.41,173.38,2.8871]
[1730013152598,2.887,173.39,173.31,4.06]
[1730013152790,7.99466324,173.38,173.33,7.99466324]
[1730013153690,10.88196324,173.38,173.34,2.8877]
[1730013154697,10.88196324,173.38,173.34,10.88236324]
[1730013155597,2.8873,173.38,173.34,10.88236324]
[1730013157701,4.06,173.41,173.36,7.99466324]
[1730013158301,6.9467,173.41,173.37,2.8872]
[1730013159203,14.94136324,173.41,173.37,2.8872]
[1730013159396,10.88186324,173.38,173.34,2.8877]
[1730013159601,7.99466324,173.38,173.34,2.8877]
[1730013160302,2.8873,173.37,173.34,2.8877]
[1730013160498,7.99466324,173.38,173.34,2.8877]
[1730013161398,10.88186324,173.38,173.34,2.8877]
[1730013167401,2.8873,173.37,173.33,10.88246324]
[1730013168403,2.8873,173.37,173.35,7.99466324]
[1730013168610,2.8873,173.37,173.34,2.8877]
[1730013168799,6.9473,173.37,173.34,2.8877]
[1730013170603,4.06,173.37,173.34,2.8877]
[1730013175698,4.06,173.37,173.36,2.8874]
[1730013175904,2.4094,173.45,173.36,7.99466324]
[1730013175905,4.06,173.41,173.36,7.99466324]
[1730013176102,4.06,173.41,173.37,7.99466324]
[1730013176303,4.06,173.41,173.38,2.8871]
[1730013178504,6.9466,173.41,173.38,2.8871]
[1730013180511,7.99466324,173.4,173.38,2.8871]
[1730013181007,2.8869,173.39,173.36,2.8874]
[1730013181208,10.88156324,173.39,173.36,2.8874]
[1730013183712,7.99466324,173.37,173.34,2.8878]
[1730013185806,12.05466324,173.37,173.34,2.8878]
[1730013189717,14.94196324,173.37,173.34,2.8878]
[1730013190515,12.05466324,173.37,173.32,7.99466324]
[1730013190720,12.05466324,173.37,173.33,6.5267417]
[1730013191017,4.06,173.37,173.34,9.43906524]
[1730013191214,4.06,173.37,173.34,7.99466324]
[1730013193218,4.06,173.37,173.34,10.88236324]
[1730013198130,4.06,173.39,173.38,2.887]
[1730013208036,4.06,173.39,173.38,10.88166324]
[1730013208241,4.06,173.39,173.38,12.32569487]
[1730013208442,4.06,173.39,173.38,17.40567048]
[1730013209839,4.06,173.39,173.38,15.96163885]
[1730013210041,2.8863,173.43,173.38,15.96163885]
[1730013210042,4.06,173.42,173.39,2.8868]
[1730013212835,1.2369,173.45,173.38,7.99466324]
[1730013213140,1.2369,173.45,173.4,7.99466324]
[1730013213141,4.06,173.44,173.4,7.99466324]
[1730013213342,2.5289,173.55,173.37,4.06]
[1730013213545,14.93996324,173.49,173.45,2.8859]
[1730013214741,6.9453,173.49,173.45,2.8859]
[1730013215134,14.93996324,173.49,173.45,2.8859]
[1730013215841,12.05466324,173.49,173.45,2.8859]
[1730013216046,2.8859,173.46,173.42,2.8864]
[1730013216541,10.88056324,173.46,173.42,2.8864]
[1730013216943,10.88016324,173.48,173.43,10.88076324]
[1730013217248,10.88016324,173.48,173.43,7.99466324]
[1730013218241,10.88016324,173.48,173.44,2.886]
[1730013219947,4.06,173.47,173.44,2.886]
[1730013220140,4.06,173.47,173.43,7.99466324]
[1730013220337,4.06,173.47,173.44,2.8861]
[1730013220540,4.06,173.47,173.43,7.99466324]
[1730013221251,4.06,173.47,173.44,2.8861]
[1730013224448,12.05466324,173.47,173.4,3.6453]
[1730013224747,7.99466324,173.43,173.38,7.99466324]
[1730013225441,7.99466324,173.44,173.39,7.99466324]
[1730013226247,7.99466324,173.44,173.41,2.8865]
[1730013230445,7.99466324,173.44,173.39,7.99466324]
[1730013230642,7.99466324,173.44,173.42,2.8864]
[1730013232952,7.99466324,173.44,173.39,2.8868]
[1730013233149,7.99466324,173.44,173.39,7.99466324]
[1730013233844,7.99466324,173.42,173.39,2.8869]
[1730013238046,7.99466324,173.42,173.3,2.4261]